bitfinex/quotes_ETHUSD_20260111
["timestamp","ask_amount","ask_price","bid_price","bid_amount"]
[1768168647737,0.002,3120.9,3120.4,0.92791341]
[1768168648828,0.002,3121.0,3120.6,0.92711261]
[1768168649357,0.252,3121.2,3120.7,0.92711261]
[1768168649558,0.002,3120.9,3120.7,0.92711261]
[1768168649761,0.252,3121.2,3120.7,0.92711261]
[1768168649956,0.252,3121.2,3120.7,4.13150018]
[1768168651373,0.0028008,3121.5,3121.0,0.92791349]
[1768168651570,0.0028008,3121.5,3121.2,0.02036913]
[1768168652171,0.95820404,3121.6,3121.2,0.02036913]
[1768168652838,0.002,3121.6,3121.2,0.02036913]
[1768168653848,0.95820404,3121.6,3121.2,0.02036913]
[1768168654488,0.96069561,3121.8,3121.2,0.02036913]
[1768168654642,0.96069561,3121.8,3121.2,0.34295785]
[1768168655792,0.95789481,3121.7,3121.2,0.34295785]
[1768168655972,0.95789481,3121.7,3121.2,0.02036913]
[1768168659078,0.2548008,3121.8,3121.2,0.93437043]
[1768168659457,0.2548008,3121.8,3121.2,0.02036913]
[1768168659458,0.95789481,3121.7,3121.2,0.02036913]
[1768168659859,3.45816297,3121.8,3121.2,0.02036913]
[1768168659860,0.95789481,3121.5,3121.2,0.02036913]
[1768168660181,6.66152514,3121.8,3121.2,0.02036913]
[1768168660182,0.99794094,3121.4,3121.2,0.02036913]
[1768168660882,0.95789481,3121.4,3121.2,0.02036913]
[1768168661273,4.20164468,3121.4,3121.2,0.02036913]
[1768168662379,0.95789481,3121.3,3121.2,0.02036913]
[1768168662986,0.95789481,3121.2,3121.0,0.00080088]
[1768168663570,0.95789481,3121.2,3120.4,0.0008008]
[1768168664695,4.1618934,3121.1,3120.4,0.0008008]
[1768168664900,0.95789481,3121.0,3120.4,0.0008008]
[1768168665192,1.69447711,3121.0,3120.4,0.0008008]
[1768168665392,0.95789481,3121.0,3120.4,0.0008008]
[1768168666080,6.40799718,3121.1,3120.4,0.0008008]
[1768168666255,4.16183226,3121.2,3120.4,0.9148021]
[1768168666456,0.95789481,3121.1,3120.4,0.9148021]
[1768168667301,4.16189866,3121.1,3120.4,0.9148021]
[1768168667897,0.95789481,3121.0,3120.4,0.0008008]
[1768168669002,4.16199643,3121.0,3120.4,0.0008008]
[1768168671004,0.95789481,3121.0,3120.4,0.0008008]
[1768168671207,4.16205112,3121.0,3120.4,0.0008008]
[1768168672705,4.16205112,3121.0,3120.7,0.001]
[1768168672892,4.95020077,3121.0,3120.7,0.001]
[1768168673289,1.74604446,3121.0,3120.7,0.001]
[1768168673506,1.47340957,3121.2,3120.7,0.001]
[1768168673697,4.6773055,3121.2,3120.7,0.001]
[1768168674013,0.95789481,3121.1,3120.7,0.001]
[1768168675612,4.16196599,3121.1,3120.7,0.001]
[1768168680918,7.36603717,3121.1,3120.7,0.001]
[1768168681115,1.74605,3121.0,3120.7,0.001]
[1768168683323,4.95017161,3121.0,3120.7,0.001]
[1768168685530,1.74605,3121.0,3120.7,0.001]
[1768168685829,0.78815519,3121.0,3120.7,0.001]
[1768168686824,3.99226153,3121.0,3120.7,0.001]
[1768168687322,0.78815519,3121.0,3120.7,0.001]
[1768168687528,3.99225694,3121.0,3120.7,0.001]
[1768168692234,0.78815519,3121.0,3120.7,0.001]
[1768168693031,3.99228249,3121.0,3120.7,0.001]
[1768168694929,0.78815519,3121.0,3120.7,0.001]
[1768168695829,0.94047072,3120.8,3120.2,0.000833]
[1768168696026,0.93966992,3120.6,3120.2,0.000833]
[1768168696629,0.04005768,3120.5,3120.2,0.000833]
[1768168697111,0.93966992,3120.5,3120.2,0.000833]
[1768168697326,6.40907848,3120.6,3120.2,0.000833]
[1768168697642,0.76007484,3120.5,3120.2,0.000833]
[1768168699741,3.20471734,3120.4,3120.2,0.000833]
[1768168700898,4.14438726,3120.4,3120.2,0.000833]
[1768168702138,3.20471734,3120.4,3120.2,0.000833]
[1768168702315,0.93966992,3120.3,3120.2,0.000833]
[1768168702515,1.75058191,3120.3,3120.2,0.000833]
[1768168704939,4.95540195,3120.3,3120.2,0.000833]
[1768168705143,4.95540195,3120.3,3119.6,0.98121986]
[1768168707143,8.16022199,3120.3,3119.6,0.98121986]
[1768168707344,0.93966992,3120.2,3119.6,0.0008032]
[1768168710739,4.14466167,3120.2,3119.6,0.0008032]
[1768168710920,3.20499175,3120.2,3119.6,0.0008032]
[1768168711125,3.20499175,3120.2,3119.6,0.98121986]
[1768168712850,6.40965406,3120.3,3119.6,0.98121986]
[1768168713332,3.20482703,3120.3,3119.6,0.98121986]
[1768168719249,3.20482703,3120.3,3119.9,0.001]
[1768168719417,4.8429685,3120.3,3119.9,0.001]
[1768168723352,3.93982992,3120.3,3119.9,0.001]
[1768168726758,3.93989395,3120.3,3119.9,0.001]
[1768168727927,0.73500289,3120.3,3119.9,0.001]
[1768168728254,0.9039393,3120.5,3119.9,0.001]
[1768168728255,3.20471734,3120.4,3119.9,0.001]
[1768168729252,6.40943468,3120.4,3119.9,0.001]
[1768168730273,3.20471734,3120.4,3119.9,0.001]
[1768168730755,6.40943468,3120.4,3119.9,0.001]
[1768168733531,3.20471734,3120.4,3119.9,0.001]
[1768168733732,3.93613025,3120.4,3119.9,0.001]
[1768168734539,8.04398617,3120.4,3119.9,0.001]
[1768168735334,4.83926883,3120.4,3119.9,0.001]
[1768168735664,3.93613025,3120.4,3119.9,0.001]
[1768168736233,0.73141291,3120.4,3119.9,0.91593134]
[1768168736449,0.252,3120.4,3119.9,0.91593134]
[1768168738168,0.252,3120.4,3119.9,0.001]
[1768168738354,0.00080072,3120.5,3119.9,0.91593134]
[1768168738557,0.00080072,3120.5,3120.0,0.91493134]
[1768168738856,0.00080072,3120.5,3120.1,1.32704559]
[1768168740269,0.00080072,3120.5,3120.1,0.91493134]
[1768168742159,0.002,3120.2,3120.1,4.11993947]
[1768168742342,0.00280072,3120.5,3120.2,0.91493134]
[1768168761020,0.00280072,3120.5,3120.3,0.96072535]
[1768168761188,0.91957637,3120.8,3120.2,0.00083308]
[1768168761365,0.0008008,3120.8,3120.3,0.96072535]
[1768168765202,0.0008008,3120.8,3120.4,0.001]
[1768168768274,0.91957637,3120.8,3120.4,0.001]
[1768168768702,0.95883068,3120.7,3120.4,0.001]
[1768168768908,0.91877557,3120.7,3120.4,0.001]
[1768168775641,4.1232416,3120.7,3120.4,0.001]
[1768168777540,0.91877557,3120.7,3120.4,0.001]
[1768168780844,0.98524194,3120.6,3120.2,0.00083308]
[1768168781009,1.02529833,3120.6,3120.2,0.00083308]
[1768168781618,0.04005639,3120.6,3120.2,0.00083308]
[1768168782810,3.20471734,3120.4,3120.2,0.00083308]
[1768168783121,7.39467662,3120.4,3119.9,0.001]
[1768168783316,0.76466327,3120.3,3119.9,0.001]
[1768168784855,1.74990521,3120.3,3119.9,0.001]
[1768168785060,4.1901647,3120.2,3119.9,0.001]
[1768168785430,0.98524194,3120.2,3119.9,0.001]
[1768168785826,3.20485757,3120.3,3119.9,0.001]
[1768168788366,3.20485757,3120.3,3120.2,0.001]
[1768168788574,3.96962028,3120.3,3120.2,0.001]
[1768168788737,4.95486222,3120.3,3119.9,0.001]
[1768168793669,8.15971979,3120.3,3119.9,0.001]
[1768168794369,0.98524194,3120.2,3119.9,0.001]
[1768168795280,3.96962028,3120.3,3119.9,0.001]
[1768168799766,3.96962028,3120.3,3120.2,0.001]
[1768168800581,0.98524194,3120.2,3119.9,0.001]
[1768168801286,0.98524194,3120.2,3119.6,0.0008032]
[1768168801494,6.40971514,3120.3,3119.6,0.0008032]
[1768168801495,0.98524194,3120.0,3119.6,0.0008032]
[1768168801774,0.98524194,3119.7,3119.0,0.001]
[1768168803682,0.98524194,3119.5,3119.0,0.001]
[1768168803885,0.98524194,3119.4,3119.0,0.001]
[1768168804083,0.252,3119.5,3119.0,0.001]
[1768168807279,1.01165062,3119.5,3119.0,0.93832565]
[1768168807488,0.252,3119.5,3119.0,0.93832565]
[1768168807674,3.4576491,3119.5,3119.0,0.93832565]
[1768168808276,0.0008032,3120.0,3119.0,0.93832565]
[1768168808478,6.66246259,3119.9,3119.0,0.93832565]
[1768168808657,0.66632658,3119.8,3119.0,0.93832565]
[1768168808859,6.66246259,3119.9,3119.0,0.93832565]
[1768168811315,6.66246259,3119.9,3119.3,0.94566833]
[1768168811819,0.002,3119.6,3119.3,0.94566833]
[1768168816609,0.002,3119.6,3119.3,0.001]
[1768168816992,0.96761509,3119.6,3119.0,0.001]
[1768168818400,0.96561509,3119.4,3119.0,0.001]
[1768168818581,1.95550498,3119.4,3119.0,0.001]
[1768168820318,3.20584746,3119.3,3119.0,0.001]
[1768168821520,3.24592055,3119.3,3119.0,0.001]
[1768168822015,4.17146255,3119.3,3119.0,0.001]
[1768168822512,4.21153564,3119.3,3119.0,0.001]
[1768168823429,3.20584746,3119.3,3119.0,0.001]
[1768168823721,4.19567272,3119.4,3119.0,0.001]
[1768168824301,4.19567272,3119.4,3119.3,0.001]
[1768168824628,4.19567272,3119.4,3119.0,0.001]
[1768168825406,0.98988989,3119.4,3119.0,0.001]
[1768168825586,4.19563466,3119.4,3119.0,0.001]
[1768168831338,0.96561509,3119.3,3118.5,0.94547209]
[1768168831538,1.48174007,3119.3,3118.5,0.94547209]
[1768168832519,3.20595024,3119.2,3118.5,0.94547209]
[1768168833229,7.37751557,3119.2,3118.5,0.94547209]
[1768168834601,6.69551557,3119.2,3118.5,0.94547209]
[1768168834801,7.9602468,3119.2,3118.5,0.94547209]
[1768168835510,0.97585113,3119.1,3118.8,0.001]
[1768168835711,0.97585113,3119.0,3118.8,0.001]
[1768168835912,7.97048284,3119.2,3118.8,0.001]
[1768168837942,5.42163298,3119.1,3118.5,0.00080376]
[1768168838149,1.24162647,3119.0,3118.5,0.00080376]
[1768168839034,0.252,3118.9,3118.5,0.00080376]
[1768168839856,3.20636142,3118.8,3118.5,0.00080376]
[1768168840329,3.45830731,3118.9,3118.5,0.00080376]
[1768168841949,6.66461462,3118.9,3118.5,0.00080376]
[1768168842105,7.4286612,3118.9,3118.5,0.00080376]
[1768168843297,8.40451233,3118.9,3118.5,0.00080376]
[1768168844823,7.4286612,3118.9,3118.5,0.00080376]
[1768168847236,4.22235389,3118.9,3118.8,0.001]
[1768168847455,8.40651233,3118.9,3118.5,0.00080376]
[1768168847652,7.4306612,3118.9,3118.5,0.00080376]
[1768168859278,4.22435389,3118.9,3118.8,0.001]
[1768168859485,0.97585113,3118.8,3118.5,0.00080376]
[1768168859762,7.4306612,3118.9,3118.5,0.00080376]
[1768168860136,7.4306612,3118.9,3117.9,0.001]
[1768168860137,0.74306612,3118.8,3117.9,0.001]
[1768168860336,5.42163298,3118.6,3117.9,0.001]
[1768168860949,5.42163298,3118.6,3117.9,0.99627242]
[1768168861348,3.20666987,3118.5,3117.9,0.99627242]
[1768168861965,3.20658669,3118.6,3117.9,0.99627242]
[1768168862550,6.41317338,3118.6,3117.9,0.99627242]
[1768168863868,7.4118441,3118.7,3117.9,0.99627242]
[1768168864061,1.8121247,3118.6,3117.9,0.99627242]
[1768168864772,1.8121247,3118.6,3117.9,0.001]
[1768168865269,0.99891564,3118.5,3117.9,0.001]
[1768168865472,0.252,3118.4,3117.9,0.001]
[1768168865841,3.20687554,3118.3,3117.9,0.001]
[1768168871574,3.45881349,3118.4,3117.9,0.001]
[1768168871972,3.45881349,3118.4,3118.2,0.001]
[1768168872174,3.97755243,3118.4,3118.2,0.001]
[1768168873178,0.77073894,3118.4,3118.2,0.001]
[1768168873344,3.97751469,3118.4,3118.2,0.001]
[1768168873545,3.45877575,3118.4,3118.2,0.001]
[1768168875170,3.45877575,3118.4,3117.9,0.001]
[1768168875171,0.252,3118.3,3117.9,0.001]
[1768168875375,3.20697838,3118.2,3117.9,0.001]
[1768168880892,0.04008851,3118.1,3117.9,0.001]
[1768168881091,0.80222972,3118.1,3117.9,0.001]
[1768168881792,0.80222972,3118.1,3117.6,0.00080376]
[1768168881993,0.91536682,3118.0,3117.6,0.00080376]
[1768168882796,3.20728695,3117.9,3117.6,0.00080376]
[1768168883233,7.32994072,3117.9,3117.6,0.00080376]
[1768168883502,4.93186196,3117.9,3117.6,0.00080376]
[1768168883811,0.91536682,3117.6,3117.0,0.00080464]
[1768168884112,0.252,3117.8,3116.8,0.001]
[1768168884113,0.91536682,3117.3,3116.8,0.001]
[1768168884410,0.252,3117.2,3116.8,0.001]
[1768168884610,0.81339533,3117.2,3116.8,0.001]
[1768168885012,3.2081101,3117.1,3116.8,0.001]
[1768168885222,4.12347692,3117.1,3116.8,0.001]
[1768168885382,3.2081101,3117.1,3116.8,0.001]
[1768168886133,4.02145117,3117.2,3116.8,0.001]
[1768168887509,7.22950701,3117.2,3116.8,0.001]
[1768168887713,0.81448738,3117.1,3116.8,0.001]
[1768168889207,1.7298542,3117.1,3116.8,0.001]
[1768168889409,6.41642604,3117.0,3116.4,0.00080384]
[1768168889596,0.91536682,3116.9,3116.4,0.00080384]
[1768168891085,6.41642604,3117.0,3116.4,0.00080384]
[1768168891318,0.72309134,3116.9,3116.4,0.00080384]
[1768168891636,3.93144815,3116.9,3116.4,0.00080384]
[1768168891792,4.93806252,3117.1,3116.4,0.96394063]
[1768168891793,3.20829393,3117.0,3116.4,0.96394063]
[1768168892907,6.41658786,3117.0,3116.4,0.96394063]
[1768168895192,0.81448738,3117.1,3116.7,0.95026874]
[1768168895193,4.02264885,3117.1,3116.7,0.95026874]
[1768168895396,0.252,3117.0,3116.7,0.95026874]
[1768168895805,0.252,3117.0,3116.7,0.001]
[1768168895992,3.46030796,3117.0,3116.7,0.001]
[1768168898831,6.66861592,3117.0,3116.7,0.001]
[1768168899543,8.42589689,3117.0,3116.7,0.001]
[1768168899723,8.42589689,3117.0,3116.4,0.00080384]
[1768168899724,1.03139428,3116.9,3116.4,0.00080384]
[1768168900520,1.03139428,3116.9,3116.3,0.001]
[1768168900725,0.99129034,3116.7,3116.3,0.001]
[1768168900927,6.41724956,3116.6,3116.3,0.001]
[1768168901116,0.99285399,3116.5,3116.3,0.001]
[1768168902276,0.99129034,3116.4,3116.0,0.001]
[1768168903142,6.4176614,3116.4,3116.0,0.001]
[1768168903816,7.40895174,3116.4,3116.0,0.001]
[1768168904012,0.51553139,3116.3,3116.0,0.001]
[1768168904220,6.4176614,3116.4,3116.0,0.001]
[1768168906914,3.2088307,3116.4,3116.3,0.001]
[1768168907110,7.40895174,3116.4,3116.0,0.001]
[1768168908063,0.99129034,3116.3,3116.0,0.001]
[1768168908447,6.4176614,3116.4,3115.6,0.94926874]
[1768168908648,1.06193461,3116.3,3115.6,0.94926874]
[1768168909328,6.41807328,3116.2,3115.6,0.94926874]
[1768168914271,7.40936362,3116.2,3115.5,0.00083707]
[1768168914453,7.40936362,3116.2,3115.4,0.0008044]
[1768168914454,0.99129034,3115.8,3115.4,0.0008044]
[1768168914661,1.24329034,3115.7,3115.4,0.0008044]
[1768168915449,0.99129034,3115.6,3114.6,4.15992131]
[1768168915661,0.99129034,3115.6,3114.7,0.41607261]
[1768168916354,4.201048,3115.5,3114.7,0.41607261]
[1768168916556,0.99129034,3115.4,3114.6,0.94926874]
[1768168917272,0.99129034,3115.4,3114.6,4.15991401]
[1768168917769,0.99129034,3115.4,3114.7,3.21056252]
[1768168918972,4.20099027,3115.6,3114.8,0.94926874]
[1768168920872,7.41073001,3115.6,3114.8,0.94926874]
[1768168921072,8.17708345,3115.6,3114.8,0.94926874]
[1768168921277,4.96734371,3115.6,3114.8,0.94926874]
[1768168921472,8.17708345,3115.6,3114.8,0.94926874]
[1768168922582,0.99129034,3115.4,3114.5,0.0008048]
[1768168922913,0.99129034,3115.2,3114.5,0.0008048]
[1768168923211,0.99129034,3115.0,3114.5,0.0008048]
[1768168925903,0.99129034,3115.0,3114.1,0.92439941]
[1768168926103,0.96717334,3114.9,3113.9,0.92520437]
[1768168926410,0.96636854,3114.8,3113.9,0.92520437]
[1768168928011,0.96636854,3114.8,3114.0,0.92439941]
[1768168929004,4.17685259,3114.8,3114.0,0.92439941]
[1768168929203,0.96636854,3114.8,3114.0,0.92439941]
[1768168929716,0.96636854,3114.8,3114.2,0.002]
[1768168930209,0.001,3114.5,3114.2,0.002]
[1768168931604,0.001,3114.5,3114.2,0.97290898]
[1768168932629,0.2528048,3114.9,3114.4,0.97090898]
[1768168932928,0.0008048,3114.9,3114.4,0.97090898]
[1768168933082,0.2528048,3114.9,3114.5,0.97090898]
[1768168933285,0.0008048,3114.9,3114.5,0.97090898]
[1768168933722,0.2528048,3114.9,3114.5,0.97090898]
[1768168938093,0.0008048,3114.9,3114.6,0.97090898]
[1768168942001,0.001,3114.6,3114.4,0.97090898]
[1768168942196,0.001,3114.6,3114.4,1.38929793]
[1768168943030,0.0008048,3114.9,3114.4,1.38929793]
[1768168944034,0.0008048,3114.9,3114.4,0.97090898]
[1768168945925,0.2528048,3114.9,3114.4,0.97090898]
[1768168947816,0.2528048,3114.9,3114.4,4.18177765]
[1768168949656,0.98344686,3115.8,3114.7,0.97090898]
[1768168949814,7.45344686,3115.8,3115.0,0.97090898]
[1768168950015,0.98344686,3115.8,3115.0,1.51371694]
[1768168950255,0.252,3115.7,3115.0,4.72391435]
[1768168950620,0.252,3115.7,3115.1,0.97090898]
[1768168953885,0.98344686,3115.8,3115.1,0.97090898]
[1768168954064,0.252,3115.6,3115.1,0.97090898]
[1768168954374,0.252,3115.6,3115.1,1.88903071]
[1768168963553,0.252,3115.6,3115.1,0.91812173]
[1768168963920,1.21036763,3115.6,3115.1,0.91812173]
[1768168964057,1.21036763,3115.6,3115.0,0.54280796]
[1768168965487,0.001,3115.3,3115.0,0.54280796]
[1768168967388,0.001,3115.3,3115.0,3.75307518]
[1768168968400,1.21036763,3115.6,3115.0,3.75307518]
[1768168969296,0.252,3115.6,3115.0,3.75307518]
[1768168969595,0.252,3115.6,3115.1,1.23476518]
[1768168971601,0.95917203,3115.8,3115.1,1.23476518]
[1768168971803,0.252,3115.5,3115.1,4.44488444]
[1768168972306,0.252,3115.5,3115.1,1.23476518]
[1768168972615,0.95917203,3115.8,3115.1,1.23476518]
[1768168972902,1.21036763,3115.7,3115.1,1.23476518]
[1768168973111,1.21036763,3115.6,3114.9,0.92703178]
[1768168973672,1.21036763,3115.6,3114.9,4.13739726]
[1768168977185,1.21036763,3115.6,3115.2,0.002]
[1768168977385,0.001,3115.3,3115.2,0.002]
[1768168980934,0.0008044,3115.8,3115.2,0.92903178]
[1768168981083,0.252,3115.7,3115.2,0.92903178]
[1768168981684,0.252,3115.7,3115.2,0.002]
[1768168981994,0.252,3115.7,3115.3,0.32120751]
[1768168982313,0.252,3115.7,3115.2,0.002]
[1768168982522,1.21036763,3115.7,3115.2,0.002]
[1768168982731,0.95836763,3115.6,3115.2,0.002]
[1768168983807,0.95836763,3115.2,3114.9,0.002]
[1768168984103,0.90449909,3115.0,3114.5,0.00080488]
[1768168985330,0.90449909,3114.9,3114.5,0.00080488]
[1768168988805,0.90449909,3114.8,3114.5,0.00080488]
[1768168989412,0.96215822,3114.7,3114.5,0.00080488]
[1768168989630,1.21415822,3114.6,3114.5,0.00080488]
[1768168989844,1.21415822,3114.6,3114.5,0.00280488]
[1768168990711,0.96215822,3114.5,3114.2,0.002]
[1768168995941,0.96215822,3114.4,3114.2,0.002]
[1768168997920,0.96215822,3114.4,3113.9,0.00280496]
[1768168998320,0.96215822,3113.5,3112.8,0.94940045]
[1768168998553,0.252,3113.4,3112.8,0.94940045]
[1768168998741,0.252,3113.4,3112.8,0.002]
[1768168999241,0.252,3113.4,3112.8,0.41839822]
[1768168999242,1.21415822,3113.4,3112.8,0.41839822]
[1768169000051,1.21415822,3113.4,3112.8,3.63093567]
[1768169000418,1.21415822,3113.4,3112.8,0.41839822]
[1768169000819,1.21415822,3113.4,3112.8,3.63092268]
[1768169001474,1.21415822,3113.4,3112.8,6.84346444]
[1768169001614,0.0008052,3113.7,3112.8,6.84346444]
[1768169001615,0.0008052,3113.7,3112.9,6.18365752]
[1768169001948,0.252,3113.6,3113.0,4.1596346]
[1768169002118,0.252,3113.6,3113.0,7.37196996]
[1768169002517,0.252,3113.6,3113.0,0.94740045]
[1768169002948,0.252,3113.6,3113.0,4.15972102]
[1768169003163,0.252,3113.6,3113.0,5.01688729]
[1768169004015,0.252,3113.6,3113.0,1.80456672]
[1768169004430,0.96296342,3113.7,3113.0,5.01687006]
[1768169004633,0.252,3113.5,3113.0,5.01687006]
[1768169005470,0.96215822,3114.1,3113.4,0.94740045]
[1768169005639,0.253,3114.1,3113.5,0.94740045]
[1768169005848,1.21515822,3114.0,3113.4,0.5404571]
[1768169006162,0.96215822,3113.9,3113.3,3.21279176]
[1768169006559,0.96215822,3113.9,3113.3,0.00080528]
[1768169007272,0.96215822,3113.9,3113.3,3.2128114]
[1768169007960,0.96215822,3113.9,3113.4,3.21188015]
[1768169008164,0.96215822,3113.9,3113.3,3.21277248]
[1768169008463,0.96215822,3113.9,3113.3,0.00080528]
[1768169008839,0.96215822,3113.9,3113.3,3.21282647]
[1768169010142,0.96215822,3113.9,3113.3,0.00080528]
[1768169013077,0.96215822,3113.8,3113.3,0.00080528]
[1768169013375,1.00230209,3113.8,3113.3,0.00080528]
[1768169014654,0.92830139,3113.6,3113.3,0.00080528]
[1768169014960,1.22044913,3113.5,3113.3,0.00080528]
[1768169015478,1.18030139,3113.5,3113.3,0.00080528]
[1768169015635,1.61960084,3113.5,3113.3,0.00080528]
[1768169016836,0.92730139,3113.4,3113.3,0.00080528]
[1768169017648,0.69229945,3113.5,3113.3,0.00080528]
[1768169018451,0.253,3113.5,3113.3,0.00080528]
[1768169026096,0.92730139,3113.4,3113.3,0.00080528]
[1768169026858,0.92730139,3113.4,3113.3,0.00280528]
[1768169029698,0.253,3113.5,3113.3,0.00280528]
[1768169034790,1.18030139,3113.5,3113.3,0.00280528]
[1768169035319,1.6195952,3113.5,3113.3,0.00280528]
[1768169035524,1.6195952,3113.5,3113.1,0.002]
[1768169035525,0.96745042,3113.4,3113.1,0.002]
[1768169036422,0.96745042,3113.4,3112.9,0.002]
[1768169036626,0.92730139,3113.3,3112.9,0.002]
[1768169039055,0.92730139,3113.2,3112.9,0.002]
[1768169039628,0.967453,3113.2,3112.8,0.002]
[1768169039933,0.92730139,3113.0,3112.8,0.002]
[1768169040230,1.18030139,3112.9,3112.8,0.002]
[1768169040698,1.18030139,3112.9,3112.6,0.002]
[1768169041295,0.92730139,3112.8,3112.6,0.002]
[1768169041519,4.39274083,3112.9,3112.6,0.002]
[1768169041800,1.36657547,3112.8,3112.6,0.002]
[1768169042031,1.36657547,3112.8,3112.4,0.00122717]
[1768169042236,0.92730139,3112.8,3112.4,0.00122717]
[1768169042730,0.253,3112.9,3112.4,0.00122717]
[1768169044043,3.46546211,3112.9,3112.4,0.00122717]
[1768169044234,0.96625956,3112.6,3112.0,0.00102174]
[1768169045000,0.96625956,3112.4,3111.5,0.002]
[1768169045331,0.00080496,3112.7,3111.5,0.002]
[1768169045332,0.96625956,3112.2,3111.5,0.002]
[1768169045925,0.96625956,3112.0,3111.5,0.002]
[1768169046120,3.21326435,3112.1,3111.5,0.002]
[1768169046121,0.96625956,3111.8,3111.5,0.002]
[1768169046306,1.21925956,3111.8,3111.5,0.002]
[1768169047320,0.96625956,3111.7,3111.5,0.002]
[1768169047503,0.253,3111.8,3111.5,0.002]
[1768169049234,0.99760749,3111.7,3110.7,0.92318845]
[1768169049434,3.46666182,3111.8,3110.7,0.92318845]
[1768169049435,0.99760749,3111.5,3110.7,0.92318845]
[1768169050001,0.44642693,3111.6,3110.5,4.13810551]
[1768169050002,0.99760749,3111.3,3110.5,4.13810551]
[1768169050202,0.253,3111.2,3110.5,0.92318845]
[1768169050413,0.253,3111.2,3110.5,3.21487748]
[1768169050414,0.99760749,3111.1,3110.5,3.21487748]
[1768169050643,0.253,3111.2,3110.7,3.21468903]
[1768169050816,0.44642693,3111.6,3110.8,0.92318845]
[1768169051018,0.253,3111.5,3110.8,0.92318845]
[1768169051614,0.99760749,3112.1,3110.8,0.92318845]
[1768169051808,0.25380368,3111.8,3110.8,0.92318845]
[1768169052242,0.25380368,3111.8,3111.0,0.92318845]
[1768169052451,1.25141117,3111.8,3111.0,0.92318845]
[1768169052636,1.25141117,3111.8,3111.1,0.73521961]
[1768169054754,1.25141117,3111.8,3111.2,3.21419388]
[1768169056851,0.25380368,3111.8,3111.2,0.92318845]
[1768169058054,0.99760749,3111.7,3111.1,3.21425114]
[1768169059159,0.99760749,3111.7,3111.0,4.13751607]
[1768169059371,0.99760749,3111.7,3111.0,1.65838529]
[1768169059524,0.99760749,3111.7,3110.2,0.0008032]
[1768169059525,0.99760749,3111.6,3110.6,3.21474151]
[1768169059720,0.99760749,3111.5,3110.6,4.13799776]
[1768169059948,0.99760749,3111.3,3110.6,4.13799776]
[1768169060151,0.253,3111.2,3110.6,0.92318845]
[1768169060327,0.99760749,3111.1,3110.3,0.92318845]
[1768169060760,0.99760749,3111.1,3110.3,4.13826169]
[1768169060970,0.99760749,3111.1,3110.4,3.21496048]
[1768169061239,0.99760749,3111.1,3110.4,3.21496814]
[1768169061438,0.99760749,3111.1,3110.4,6.42998871]
[1768169061657,0.99760749,3111.1,3110.4,4.13815659]
[1768169062227,0.99760749,3111.4,3110.5,0.92318845]
[1768169062463,1.25060749,3111.4,3110.5,0.92318845]
[1768169063161,0.99760749,3111.3,3110.5,0.92318845]
[1768169063327,0.99760749,3111.3,3110.5,4.1380154]
[1768169063530,0.99760749,3111.3,3110.5,8.16177168]
[1768169064033,0.99760749,3111.3,3110.5,4.94685447]
[1768169064243,0.99760749,3111.3,3110.5,3.21482695]
[1768169064965,3.46702472,3111.4,3110.5,3.21482695]
[1768169064966,0.99760749,3111.1,3110.5,3.21482695]
[1768169065259,0.99760749,3111.1,3110.4,0.92318845]
[1768169066633,0.99760749,3111.3,3110.4,0.92318845]
[1768169067234,0.99760749,3111.3,3110.5,4.13810566]
[1768169069460,0.99760749,3111.3,3110.5,3.21491721]
[1768169071563,0.99760749,3111.3,3110.4,3.21498986]
[1768169071935,0.99760749,3111.3,3110.4,8.08860557]
[1768169073490,0.99760749,3111.3,3110.7,0.002]
[1768169074141,0.93300609,3111.2,3110.7,0.002]
[1768169077682,1.18600609,3111.4,3110.7,0.002]
[1768169077886,0.93300609,3111.3,3110.7,0.002]
[1768169078384,1.37299556,3111.3,3110.7,0.002]
[1768169080095,6.47,3111.7,3110.7,0.99379255]
[1768169080380,0.93300609,3111.5,3110.7,0.99379255]
[1768169080789,0.93300609,3111.5,3110.7,0.002]
[1768169082888,0.93300609,3111.4,3110.7,0.002]
[1768169084988,0.93300609,3111.3,3110.7,0.002]
[1768169085355,0.93300609,3111.3,3111.0,0.002]
[1768169099698,4.14710935,3111.3,3111.0,0.002]
[1768169100296,0.97318351,3111.2,3110.7,0.002]
[1768169100595,0.93300609,3110.5,3109.9,0.002]
[1768169100811,0.93300609,3110.3,3109.9,0.002]
[1768169100973,0.0008032,3110.6,3109.9,0.002]
[1768169100974,0.253,3110.2,3109.9,0.002]
[1768169101294,0.93300609,3110.4,3109.9,0.002]
[1768169101505,0.253,3110.1,3109.9,0.002]
[1768169101664,0.253,3110.1,3109.4,0.99379255]
[1768169101862,0.253,3110.1,3109.5,0.99179255]
[1768169102896,0.93300609,3110.0,3109.4,0.002]
[1768169104303,0.41486398,3110.4,3109.7,0.90970934]
[1768169104479,0.90401963,3110.7,3109.7,0.90970934]
[1768169104677,0.90401963,3110.9,3109.7,0.90970934]
[1768169104882,0.253,3110.5,3109.8,0.90770934]
[1768169105076,0.253,3110.5,3110.0,0.90770934]
[1768169106295,0.253,3110.5,3109.8,4.12330131]
[1768169106991,0.253,3110.5,3109.9,0.90770934]
[1768169107304,0.253,3110.5,3110.0,0.73389422]
[1768169107604,0.253,3110.4,3109.9,0.90770934]
[1768169108516,0.253,3110.5,3110.0,0.90770934]
[1768169109208,0.253,3110.5,3109.8,9.64687371]
[1768169109209,0.2538032,3110.6,3110.1,7.33837072]
[1768169109413,0.2538032,3110.6,3110.1,4.12304003]
[1768169109414,0.001,3110.2,3110.1,4.12304003]
[1768169109571,0.2538032,3110.6,3110.1,4.12304003]
[1768169109770,0.2538032,3110.6,3110.1,7.33837072]
[1768169109983,0.2538032,3110.6,3110.1,4.8568771]
[1768169110225,0.92070901,3110.5,3109.7,0.002]
[1768169110462,0.92070901,3109.8,3109.2,0.00080392]
[1768169110732,0.00080392,3109.6,3108.7,4.12147322]
[1768169111192,0.92151293,3109.6,3108.7,4.12147322]
[1768169111394,0.92070901,3109.5,3108.3,0.90550595]
[1768169111623,0.92070901,3109.3,3108.3,0.90550595]
[1768169111927,0.253,3109.2,3108.3,0.90550595]
[1768169112097,0.92070901,3109.1,3108.3,3.21793013]